Workbook

Sheet Start
A1: Please Enable Macros Before Using this Form

Sheet Small Project
A1: Estimated Duration for Projects Less Than $1 Million | M1: Design Desc Range | N1: Mean | O1: Lower 95% CI | P1: Upper 95% CI
A2: Item# | M2: BRIDGE REHAB | N2: -28.012 | O2: -73.84893 | P2: 17.824936
A3: Current Year: | B3: =YEAR(TODAY()) -> 2015 | C3: Cost Index | D3: =IF(ISNA(VLOOKUP(B3,CostIndex!A:E,5,FALSE)),VLOOKUP((B3-1),CostIndex!A:E,5,FALSE),VLOOKUP(B3,CostIndex!A:E,5,FALSE)) ->  | E3: Range | M3: BRIDGE REPLACEMENT | N3: 50.771987 | O3: 30.465602 | P3: 71.078372
B4: Activity | C4: Input Value | D4: Mean Duration (Days) | E4: Lower Duration (Days) | F4: Upper Duration (Days) | M4: CONGESTION MITIGTN | N4: 3.5490812 | O4: -49.44283 | P4: 56.540988
B5: Construction Estimate | D5: =IF($C$6="",0,IF(N12+N13*$C$5*$D$3+VLOOKUP($C$6,$M$2:$P$11,2,FALSE)<1,1,N12+N13*$C$5*$D$3+VLOOKUP($C$6,$M$2:$P$11,2,FALSE))) -> 0 | E5: =IF($C$6="",0,IF(O12+O13*$C$5*D3+VLOOKUP($C$6,$M$2:$P$11,3,FALSE)<1,1,O12+O13*$C$5*$D$3+VLOOKUP($C$6,$M$2:$P$11,3,FALSE))) -> 0 | F5: =IF($C$6="",0,IF(P12+P13*$C$5*$D$3+VLOOKUP($C$6,$M$2:$P$11,4,FALSE)<1,1,P12+P13*$C$5*$D$3+VLOOKUP($C$6,$M$2:$P$11,4,FALSE))) -> 0 | M5: GUARDRAIL REPLCMNT | N5: -12.70174 | O5: -41.51222 | P5: 16.108746
B6: Select Design Project Type | M6: MINOR WIDENING | N6: -3.312152 | O6: -56.08908 | P6: 49.464777
M7: NEW ROUTE | N7: 2.5356311 | O7: -78.59201 | P7: 83.663274
D8: Schedule Estimator | M8: PAVEMENT REHAB | N8: -11.46744 | O8: -45.50797 | P8: 22.573093
D9: Proposed Letting Date | E9: =TODAY() -> 2015-07-22 | M9: RECONSTRUCTION | N9: 55.440977 | O9: 16.420342 | P9: 94.461612
E10: Lower Range | F10: Mean | G10: Upper Range | M10: RESURFACING | N10: -71.53783 | O10: -138.4699 | P10: -4.605795
D11: Estimated Calendar Days | E11: =E5 -> 0 | F11: =D5 -> 0 | G11: =F5 -> 0 | M11: SAFETY/SAFETY-HAZARD ELIM | N11: 0 | O11: 0 | P11: 0
D12: Estimated Completion Date | E12: =E11+E9+'Work Day Calc'!$N$7 -> 2015-08-21T10:00:00 | F12: =F11+E9+'Work Day Calc'!$N$7 -> 2015-08-21T10:00:00 | G12: =G11+E9+'Work Day Calc'!$N$7 -> 2015-08-21T10:00:00 | M12: Intercept | N12: 28.741366 | O12: 7.6043166 | P12: 49.878415
D13: Estimated Working Days** | E13: =INDEX('Work Day Calc'!$S$3:$AD$123,IF(MONTH(E9)>10,ROUNDDOWN(YEAR(E12)-YEAR(E9),0)*12+ROUNDUP(MONTH(E12)+DAY(E12)/30,0)-12,ROUNDDOWN(YEAR(E12)-YEAR(E9),0)*12+ROUNDUP(MONTH(E12)+DAY(E12)/30,0)),IF(MONTH(E9)>10,MONTH(E9)+2-12,MONTH(E9)+2)) -> 0 | F13: =INDEX('Work Day Calc'!$S$3:$AD$123,IF(MONTH(E9)>10,ROUNDDOWN(YEAR(F12)-YEAR(E9),0)*12+ROUNDUP(MONTH(F12)+DAY(F12)/30,0)-12,ROUNDDOWN(YEAR(F12)-YEAR(E9),0)*12+ROUNDUP(MONTH(F12)+DAY(F12)/30,0)),IF(MONTH(E9)>10,MONTH(E9)+2-12,MONTH(E9)+2)) -> 0 | G13: =INDEX('Work Day Calc'!$S$3:$AD$123,IF(MONTH(E9)>10,ROUNDDOWN(YEAR(G12)-YEAR(E9),0)*12+ROUNDUP(MONTH(G12)+DAY(G12)/30,0)-12,ROUNDDOWN(YEAR(G12)-YEAR(E9),0)*12+ROUNDUP(MONTH(G12)+DAY(G12)/30,0)),IF(MONTH(E9)>10,MONTH(E9)+2-12,MONTH(E9)+2)) -> 0 | M13: 2005 $ | N13: 0.0001325 | O13: 9.78e-05 | P13: 0.0001672
D14: **Adjust "Working Day Calc" sheet if desired; calculation attempts to account for weather. This is only an approximation. Because working days are not charged in December through March, the letting date can severly affect this calculation.
D17: Season Estimator
D18: Estimated Seasons*** | E18: =(E11/'Work Day Calc'!$N$7)/8 -> 0 | F18: =(F11/'Work Day Calc'!$N$7)/8 -> 0 | G18: =(G11/'Work Day Calc'!$N$7)/8 -> 0
D19: ***This calculation does not consider the letting date; this is for informational purposes. A full season is considered 8 months (April through November). A 1.00 season estimate starting in August will not likely be complete within the current season.

Sheet Title Sheet
J3: Item#:
F5: KTC Large Project Contract Time Determination System
B7: Choose Project Type: | J7: Instructions:
J8: 1. Fill Out Item # above.
J9: 2. Save as Item # for Reference
J10: 3. Choose Project Type
J11: 4. Fill in Activity Fields
J12: 5. Save
J14: ***Cost Indicies are updated on program initialization and valid from 2003 to current year.
J17: *Select a project type using a holistic approach. For instance if a project is a New Route, Grade & Drain type project, that includes bridge construction, select New Route as the project type.

Sheet Limited Access
A1: Limited Access Duration
A2: Item# | B2: =IF('Title Sheet'!$J$4=0, "",'Title Sheet'!$J$4) -> 
A3: Current Year: | B3: =YEAR(TODAY()) -> 2015 | C3: Cost Index | D3: =IF(ISNA(VLOOKUP(B3,CostIndex!A:E,5,FALSE)),VLOOKUP((B3-1),CostIndex!A:E,5,FALSE),VLOOKUP(B3,CostIndex!A:E,5,FALSE)) ->  | E3: Range
A4: Construction Type | B4: Activity | C4: Input Value | D4: Mean Duration (Days) | E4: Lower Duration (Days) | F4: Upper Duration (Days)
A5: Limited Access (>$1 million) | B5: Construction Estimate | D5: =ROUNDUP(145.821+0.000009493*C5*D3+0.0003552*C6+0.023*C7,0) ->  | E5: =ROUNDUP(75.965+0.000004393*C5*D3+0.0002281*C6+0.0044*C7,0) ->  | F5: =ROUNDUP(215.677+0.00001459*C5*D3+0.0004823*C6+0.0413*C7,0) -> 
B6: Roadway Excv. (CY)
B7: Storm Sewer (LF)
D8: Schedule Estimator
D9: Proposed Letting Date | E9: =TODAY() -> 2015-07-22
E10: Lower Range | F10: Mean | G10: Upper Range
D11: Estimated Calendar Days | E11: =E5 ->  | F11: =D5 ->  | G11: =F5 -> 
D12: Estimated Completion Date | E12: =E11+E9+'Work Day Calc'!$N$7 ->  | F12: =F11+E9+'Work Day Calc'!$N$7 ->  | G12: =G11+E9+'Work Day Calc'!$N$7 -> 
D13: Estimated Working Days** | E13: =INDEX('Work Day Calc'!$S$3:$AD$123,IF(MONTH(E9)>10,ROUNDDOWN(YEAR(E12)-YEAR(E9),0)*12+ROUNDUP(MONTH(E12)+DAY(E12)/30,0)-12,ROUNDDOWN(YEAR(E12)-YEAR(E9),0)*12+ROUNDUP(MONTH(E12)+DAY(E12)/30,0)),IF(MONTH(E9)>10,MONTH(E9)+2-12,MONTH(E9)+2)) ->  | F13: =INDEX('Work Day Calc'!$S$3:$AD$123,IF(MONTH(E9)>10,ROUNDDOWN(YEAR(F12)-YEAR(E9),0)*12+ROUNDUP(MONTH(F12)+DAY(F12)/30,0)-12,ROUNDDOWN(YEAR(F12)-YEAR(E9),0)*12+ROUNDUP(MONTH(F12)+DAY(F12)/30,0)),IF(MONTH(E9)>10,MONTH(E9)+2-12,MONTH(E9)+2)) ->  | G13: =INDEX('Work Day Calc'!$S$3:$AD$123,IF(MONTH(E9)>10,ROUNDDOWN(YEAR(G12)-YEAR(E9),0)*12+ROUNDUP(MONTH(G12)+DAY(G12)/30,0)-12,ROUNDDOWN(YEAR(G12)-YEAR(E9),0)*12+ROUNDUP(MONTH(G12)+DAY(G12)/30,0)),IF(MONTH(E9)>10,MONTH(E9)+2-12,MONTH(E9)+2)) -> 
D14: **Adjust "Working Day Calc" sheet if desired; calculation attempts to account for weather. This is only an approximation. Because working days are not charged in December through March, the letting date can severly affect this calculation.
D17: Season Estimator
D18: Estimated Seasons*** | E18: =(E11/'Work Day Calc'!$N$7)/8 ->  | F18: =(F11/'Work Day Calc'!$N$7)/8 ->  | G18: =(G11/'Work Day Calc'!$N$7)/8 -> 
D19: ***This calculation does not consider the letting date; this is for informational purposes. A full season is considered 8 months (April through November). A 1.00 season estimate starting in August will not likely be complete within the current season.

Sheet Open Access
A1: Open Access Duration
A2: Item# | B2: =IF('Title Sheet'!$J$4=0, "",'Title Sheet'!$J$4) -> 
A3: Current Year: | B3: =YEAR(TODAY()) -> 2015 | C3: Cost Index: | D3: =IF(ISNA(VLOOKUP(B3,CostIndex!A:E,5,FALSE)),VLOOKUP((B3-1),CostIndex!A:E,5,FALSE),VLOOKUP(B3,CostIndex!A:E,5,FALSE)) ->  | E3: Range
A4: Construction Type | B4: Activity | C4: Input Value | D4: Mean Duration (Days) | E4: Lower Duration (Days) | F4: Upper Duration (Days)
A5: Open Access (>$1 million) | B5: Construction Estimate | D5: =ROUNDUP(173.6423+0.00001188*C5*D3+0.000292*C6+0.048*C7+0.006*C8+0.036*C9+0.075*C10-0.001*C11,0) ->  | E5: =ROUNDUP(115.429+0.000002251*C5*D3+0.0002177*C6+0.015*C7+0.004*C8+0.024*C9+0.042*C10-0.001*C11,0) ->  | F5: =ROUNDUP(231.855+0.0000215*C5*D3+0.0003655*C6+0.082*C7+0.009*C8+0.048*C9+0.11*C10-0.0002347*C11,0) -> 
B6: Roadway Excv. (CY)
B7: PVC Pipe (LF)
B8: Crushed Stone Base (Ton) | D8: Schedule Estimator
B9: Storm Sewer (LF) | D9: Proposed Letting Date | E9: =TODAY() -> 2015-07-22
B10: Culvert Pipe (LF) | E10: Lower Range | F10: Mean | G10: Upper Range
B11: Pavement Striping (LF) | D11: Estimated Calendar Days | E11: =E5 ->  | F11: =D5 ->  | G11: =F5 -> 
D12: Estimated Completion Date | E12: =E11+E9+'Work Day Calc'!$N$7 ->  | F12: =F11+E9+'Work Day Calc'!$N$7 ->  | G12: =G11+E9+'Work Day Calc'!$N$7 -> 
D13: Estimated Working Days** | E13: =INDEX('Work Day Calc'!$S$3:$AD$123,IF(MONTH(E9)>10,ROUNDDOWN(YEAR(E12)-YEAR(E9),0)*12+ROUNDUP(MONTH(E12)+DAY(E12)/30,0)-12,ROUNDDOWN(YEAR(E12)-YEAR(E9),0)*12+ROUNDUP(MONTH(E12)+DAY(E12)/30,0)),IF(MONTH(E9)>10,MONTH(E9)+2-12,MONTH(E9)+2)) ->  | F13: =INDEX('Work Day Calc'!$S$3:$AD$123,IF(MONTH(E9)>10,ROUNDDOWN(YEAR(F12)-YEAR(E9),0)*12+ROUNDUP(MONTH(F12)+DAY(F12)/30,0)-12,ROUNDDOWN(YEAR(F12)-YEAR(E9),0)*12+ROUNDUP(MONTH(F12)+DAY(F12)/30,0)),IF(MONTH(E9)>10,MONTH(E9)+2-12,MONTH(E9)+2)) ->  | G13: =INDEX('Work Day Calc'!$S$3:$AD$123,IF(MONTH(E9)>10,ROUNDDOWN(YEAR(G12)-YEAR(E9),0)*12+ROUNDUP(MONTH(G12)+DAY(G12)/30,0)-12,ROUNDDOWN(YEAR(G12)-YEAR(E9),0)*12+ROUNDUP(MONTH(G12)+DAY(G12)/30,0)),IF(MONTH(E9)>10,MONTH(E9)+2-12,MONTH(E9)+2)) -> 
D14: **Adjust "Working Day Calc" sheet if desired; calculation attempts to account for weather. This is only an approximation. Because working days are not charged in December through March, the letting date can severly affect this calculation.
D17: Season Estimator
D18: Estimated Seasons*** | E18: =(E11/'Work Day Calc'!$N$7)/8 ->  | F18: =(F11/'Work Day Calc'!$N$7)/8 ->  | G18: =(G11/'Work Day Calc'!$N$7)/8 -> 
D19: ***This calculation does not consider the letting date; this is for informational purposes. A full season is considered 8 months (April through November). A 1.00 season estimate starting in August will not likely be complete within the current season.

Sheet New Route
A1: New Route Duration
A2: Item# | B2: =IF('Title Sheet'!$J$4=0, "",'Title Sheet'!$J$4) -> 
A3: Current Year: | B3: =YEAR(TODAY()) -> 2015 | C3: Cost Index | D3: =IF(ISNA(VLOOKUP(B3,CostIndex!A:E,5,FALSE)),VLOOKUP((B3-1),CostIndex!A:E,5,FALSE),VLOOKUP(B3,CostIndex!A:E,5,FALSE)) ->  | E3: Range
A4: Construction Type | B4: Activity | C4: Input Value | D4: Mean Duration (Days) | E4: Lower Duration (Days) | F4: Upper Duration (Days)
A5: New Route (>$1 million) | B5: Construction Estimate | D5: =ROUNDUP(39.289+0.00006894*C5*D3-0.001*C6-0.018*C7-0.01*C8-0.000451*C9,0) ->  | E5: n/a | F5: =ROUNDUP(105.728+0.00008107*C5*D3-0.0001758*C6-0.011*C7-0.004*C8-0.000002272*C9,0) -> 
B6: Steel Reinforcement (LB)
B7: Granular Emb (CY)
B8: Perforated Pipe (LF) | D8: Schedule Estimator
B9: Pavement Striping (LF) | D9: Proposed Letting Date | E9: =TODAY() -> 2015-07-22
E10: Lower Range | F10: Mean | G10: Upper Range
D11: Estimated Calendar Days | E11: =E5 -> n/a | F11: =D5 ->  | G11: =F5 -> 
D12: Estimated Completion Date | E12: n/a | F12: =F11+E9+'Work Day Calc'!$N$7 ->  | G12: =G11+E9+'Work Day Calc'!$N$7 -> 
D13: Estimated Working Days** | E13: n/a | F13: =INDEX('Work Day Calc'!$S$3:$AD$123,IF(MONTH(E9)>10,ROUNDDOWN(YEAR(F12)-YEAR(E9),0)*12+ROUNDUP(MONTH(F12)+DAY(F12)/30,0)-12,ROUNDDOWN(YEAR(F12)-YEAR(E9),0)*12+ROUNDUP(MONTH(F12)+DAY(F12)/30,0)),IF(MONTH(E9)>10,MONTH(E9)+2-12,MONTH(E9)+2)) ->  | G13: =INDEX('Work Day Calc'!$S$3:$AD$123,IF(MONTH(E9)>10,ROUNDDOWN(YEAR(G12)-YEAR(E9),0)*12+ROUNDUP(MONTH(G12)+DAY(G12)/30,0)-12,ROUNDDOWN(YEAR(G12)-YEAR(E9),0)*12+ROUNDUP(MONTH(G12)+DAY(G12)/30,0)),IF(MONTH(E9)>10,MONTH(E9)+2-12,MONTH(E9)+2)) -> 
D14: **Adjust "Working Day Calc" sheet if desired; calculation attempts to account for weather. This is only an approximation. Because working days are not charged in December through March, the letting date can severly affect this calculation.
D17: Season Estimator
D18: Estimated Seasons*** | E18: n/a | F18: =(F11/'Work Day Calc'!$N$7)/8 ->  | G18: =(G11/'Work Day Calc'!$N$7)/8 -> 
D19: ***This calculation does not consider the letting date; this is for informational purposes. A full season is considered 8 months (April through November). A 1.00 season estimate starting in August will not likely be complete within the current season.

Sheet Bridge Rehabilitation
A1: Bridge Rehabilitation Duration
A2: Item# | B2: =IF('Title Sheet'!$J$4=0, "",'Title Sheet'!$J$4) -> 
A3: Current Year: | B3: =YEAR(TODAY()) -> 2015 | C3: Cost Index | D3: =IF(ISNA(VLOOKUP(B3,CostIndex!A:E,5,FALSE)),VLOOKUP((B3-1),CostIndex!A:E,5,FALSE),VLOOKUP(B3,CostIndex!A:E,5,FALSE)) ->  | E3: Range
A4: Construciton Type | B4: Activity | C4: Input Value | D4: Mean Duration (Days) | E4: Lower Duration (Days) | F4: Upper Duration (Days)
A5: Bridge Rehabilitation | B5: Construction Estimate | D5: =ROUNDUP(26.933+0.00005602*C5*D3,0) ->  | E5: =ROUNDUP(4.406+0.00004919*C5*D3,0) ->  | F5: =ROUNDUP(49.461+0.00006284*C5*D3,0) -> 
D8: Schedule Estimator
D9: Proposed Letting Date | E9: =TODAY() -> 2015-07-22
E10: Lower Range | F10: Mean | G10: Upper Range
D11: Estimated Calendar Days | E11: =E5 ->  | F11: =D5 ->  | G11: =F5 -> 
D12: Estimated Completion Date | E12: =E11+E9+'Work Day Calc'!$N$7 ->  | F12: =F11+E9+'Work Day Calc'!$N$7 ->  | G12: =G11+E9+'Work Day Calc'!$N$7 -> 
D13: Estimated Working Days** | E13: =INDEX('Work Day Calc'!$S$3:$AD$123,IF(MONTH(E9)>10,ROUNDDOWN(YEAR(E12)-YEAR(E9),0)*12+ROUNDUP(MONTH(E12)+DAY(E12)/30,0)-12,ROUNDDOWN(YEAR(E12)-YEAR(E9),0)*12+ROUNDUP(MONTH(E12)+DAY(E12)/30,0)),IF(MONTH(E9)>10,MONTH(E9)+2-12,MONTH(E9)+2)) ->  | F13: =INDEX('Work Day Calc'!$S$3:$AD$123,IF(MONTH(E9)>10,ROUNDDOWN(YEAR(F12)-YEAR(E9),0)*12+ROUNDUP(MONTH(F12)+DAY(F12)/30,0)-12,ROUNDDOWN(YEAR(F12)-YEAR(E9),0)*12+ROUNDUP(MONTH(F12)+DAY(F12)/30,0)),IF(MONTH(E9)>10,MONTH(E9)+2-12,MONTH(E9)+2)) ->  | G13: =INDEX('Work Day Calc'!$S$3:$AD$123,IF(MONTH(E9)>10,ROUNDDOWN(YEAR(G12)-YEAR(E9),0)*12+ROUNDUP(MONTH(G12)+DAY(G12)/30,0)-12,ROUNDDOWN(YEAR(G12)-YEAR(E9),0)*12+ROUNDUP(MONTH(G12)+DAY(G12)/30,0)),IF(MONTH(E9)>10,MONTH(E9)+2-12,MONTH(E9)+2)) -> 
D14: **Adjust "Working Day Calc" sheet if desired; calculation attempts to account for weather. This is only an approximation. Because working days are not charged in December through March, the letting date can severly affect this calculation.
D17: Season Estimator
D18: Estimated Seasons*** | E18: =(E11/'Work Day Calc'!$N$7)/8 ->  | F18: =(F11/'Work Day Calc'!$N$7)/8 ->  | G18: =(G11/'Work Day Calc'!$N$7)/8 -> 
D19: ***This calculation does not consider the letting date; this is for informational purposes. A full season is considered 8 months (April through November). A 1.00 season estimate starting in August will not likely be complete within the current season.

Sheet Bridge Replacement
A1: Bridge Replacement Duration
A2: Item# | B2: =IF('Title Sheet'!$J$4=0, "",'Title Sheet'!$J$4) -> 
A3: Current Year: | B3: =YEAR(TODAY()) -> 2015 | C3: Cost Index | D3: =IF(ISNA(VLOOKUP(B3,CostIndex!A:E,5,FALSE)),VLOOKUP((B3-1),CostIndex!A:E,5,FALSE),VLOOKUP(B3,CostIndex!A:E,5,FALSE)) ->  | E3: Range
A4: Construction Type | B4: Activity | C4: Input Value | D4: Mean Duration (Days) | E4: Lower Duration (Days) | F4: Upper Duration (Days)
A5: Bridge Replacement-Engineers’ Estimate (>$1 million) | B5: Class AA Concrete (CY) | D5: =ROUNDUP(97.155+0.447*C5+0.043*C6+0.00001909*C7*D3,0) ->  | E5: =ROUNDUP(22.585+0.249*C5+0.018*C6+0.000001208*C7*D3,0) ->  | F5: =ROUNDUP(171.725+0.644*C5+0.068*C6+0.00003696*C7*D3,0) -> 
B6: Granular Emb (CY)
B7: Construction Estimate
D8: Schedule Estimator
D9: Proposed Letting Date | E9: =TODAY() -> 2015-07-22
E10: Lower Range | F10: Mean | G10: Upper Range
D11: Estimated Calendar Days | E11: =E5 ->  | F11: =D5 ->  | G11: =F5 -> 
D12: Estimated Completion Date | E12: =E11+E9+'Work Day Calc'!$N$7 ->  | F12: =F11+E9+'Work Day Calc'!$N$7 ->  | G12: =G11+E9+'Work Day Calc'!$N$7 -> 
D13: Estimated Working Days** | E13: =INDEX('Work Day Calc'!$S$3:$AD$123,IF(MONTH(E9)>10,ROUNDDOWN(YEAR(E12)-YEAR(E9),0)*12+ROUNDUP(MONTH(E12)+DAY(E12)/30,0)-12,ROUNDDOWN(YEAR(E12)-YEAR(E9),0)*12+ROUNDUP(MONTH(E12)+DAY(E12)/30,0)),IF(MONTH(E9)>10,MONTH(E9)+2-12,MONTH(E9)+2)) ->  | F13: =INDEX('Work Day Calc'!$S$3:$AD$123,IF(MONTH(E9)>10,ROUNDDOWN(YEAR(F12)-YEAR(E9),0)*12+ROUNDUP(MONTH(F12)+DAY(F12)/30,0)-12,ROUNDDOWN(YEAR(F12)-YEAR(E9),0)*12+ROUNDUP(MONTH(F12)+DAY(F12)/30,0)),IF(MONTH(E9)>10,MONTH(E9)+2-12,MONTH(E9)+2)) ->  | G13: =INDEX('Work Day Calc'!$S$3:$AD$123,IF(MONTH(E9)>10,ROUNDDOWN(YEAR(G12)-YEAR(E9),0)*12+ROUNDUP(MONTH(G12)+DAY(G12)/30,0)-12,ROUNDDOWN(YEAR(G12)-YEAR(E9),0)*12+ROUNDUP(MONTH(G12)+DAY(G12)/30,0)),IF(MONTH(E9)>10,MONTH(E9)+2-12,MONTH(E9)+2)) -> 
D14: **Adjust "Working Day Calc" sheet if desired; calculation attempts to account for weather. This is only an approximation. Because working days are not charged in December through March, the letting date can severly affect this calculation.
D17: Season Estimator
D18: Estimated Seasons*** | E18: =(E11/'Work Day Calc'!$N$7)/8 ->  | F18: =(F11/'Work Day Calc'!$N$7)/8 ->  | G18: =(G11/'Work Day Calc'!$N$7)/8 -> 
D19: ***This calculation does not consider the letting date; this is for informational purposes. A full season is considered 8 months (April through November). A 1.00 season estimate starting in August will not likely be complete within the current season.

Sheet Work Day Calc
A1: Kentucky Adjusted Working Days | P1: Calendar (Eqn) | S1: Starting Month (First Month After NTP--Approx 2 months after letting)
A2: Month | B2: Calendar Days | C2: Working Days Per Week | D2: Start Working Days | E2: Adjusted Working Days (AWD) | F2: Spec & Weather Adjusted Working Days | H2: Rainfall Issues | I2: Temp Issues | J2: Adverse Days | P2: Year | Q2: Months | R2: # WD/Mo | S2: 1 | T2: 2 | U2: 3 | V2: 4 | W2: 5 | X2: 6 | Y2: 7 | Z2: 8 | AA2: 9 | AB2: 10 | AC2: 11 | AD2: 12
A3: January | B3: 31 | C3: 5 | D3: =ROUND(B3/7*C3,0) -> 22 | E3: =ROUND(B3/7*C3-J3,0) -> 11 | F3: 0 | H3: 0.2 | I3: 0.3 | J3: =D3*H3+D3*I3 -> 11 | P3: 1 | Q3: 1 | R3: =F3 -> 0
A4: February | B4: 28 | C4: 5 | D4: =ROUND(B4/7*C4,0) -> 20 | E4: =ROUND(B4/7*C4-J4,0) -> 10 | F4: 0 | H4: 0.25 | I4: 0.23 | J4: =D4*H4+D4*I4 -> 9.6 | P4: 1 | Q4: 2 | R4: 0 | S4: =R3 -> 0
A5: March | B5: 31 | C5: 5 | D5: 22 | E5: 13 | F5: 0 | H5: 0.33 | I5: 0.08 | J5: 9.02 | P5: 1 | Q5: 3 | R5: 0 | S5: =S4+$R4 -> 0 | T5: =R4 -> 0
A6: April | B6: 30 | C6: 5 | D6: 21 | E6: 15 | F6: =Table2[[#This Row],[Adjusted Working Days (AWD)]] -> 15 | H6: 0.3 | I6: 0 | J6: 6.3 | M6: Average | P6: 1 | Q6: 4 | R6: 15 | S6: =S5+$R5 -> 0 | T6: =T5+$R5 -> 0 | U6: =R5 -> 0
A7: May | B7: 31 | C7: 6 | D7: 27 | E7: 19 | F7: =Table2[[#This Row],[Adjusted Working Days (AWD)]] -> 19 | H7: 0.28 | I7: 0 | J7: 7.56 | M7: Days/Month | N7: =AVERAGE(Table2[Calendar Days]) -> 30.41666667 | P7: 1 | Q7: 5 | R7: 19 | S7: =S6+R6 -> 15 | T7: 15 | U7: =U6+$R6 -> 15 | V7: =R6 -> 15
A8: June | B8: 30 | C8: 6 | D8: 26 | E8: 19 | F8: =Table2[[#This Row],[Adjusted Working Days (AWD)]] -> 19 | H8: 0.25 | I8: 0 | J8: 6.5 | M8: WD/Month | N8: =AVERAGE(Table2[Start Working Days]) -> 23.58333333 | P8: 1 | Q8: 6 | R8: 19 | S8: 34 | T8: 34 | U8: 34 | V8: =V7+$R7 -> 34 | W8: =R7 -> 19
A9: July | B9: 31 | C9: 6 | D9: 27 | E9: 20 | F9: =Table2[[#This Row],[Adjusted Working Days (AWD)]] -> 20 | H9: 0.23 | I9: 0 | J9: 6.21 | M9: AWD/Month | N9: =AVERAGE(Table2[Adjusted Working Days (AWD)]) -> 15.83333333 | P9: 1 | Q9: 7 | R9: 20 | S9: 53 | T9: 53 | U9: 53 | V9: 53 | W9: =W8+$R8 -> 38 | X9: =R8 -> 19
A10: August | B10: 31 | C10: 6 | D10: 27 | E10: 20 | F10: =Table2[[#This Row],[Adjusted Working Days (AWD)]] -> 20 | H10: 0.23 | I10: 0 | J10: 6.21 | P10: 1 | Q10: 8 | R10: 20 | S10: 73 | T10: 73 | U10: 73 | V10: 73 | W10: 58 | X10: =X9+$R9 -> 39 | Y10: =R9 -> 20
A11: September | B11: 30 | C11: 6 | D11: 26 | E11: 19 | F11: =Table2[[#This Row],[Adjusted Working Days (AWD)]] -> 19 | H11: 0.25 | I11: 0 | J11: 6.5 | P11: 1 | Q11: 9 | R11: 19 | S11: 93 | T11: 93 | U11: 93 | V11: 93 | W11: 78 | X11: 59 | Y11: =Y10+$R10 -> 40 | Z11: =R10 -> 20
A12: October | B12: 31 | C12: 5 | D12: 22 | E12: 17 | F12: =Table2[[#This Row],[Adjusted Working Days (AWD)]] -> 17 | H12: 0.25 | I12: 0 | J12: 5.5 | P12: 1 | Q12: 10 | R12: 17 | S12: 112 | T12: 112 | U12: 112 | V12: 112 | W12: 97 | X12: 78 | Y12: 59 | Z12: =Z11+$R11 -> 39 | AA12: =R11 -> 19
A13: November | B13: 30 | C13: 5 | D13: 21 | E13: 15 | F13: =Table2[[#This Row],[Adjusted Working Days (AWD)]] -> 15 | H13: 0.25 | I13: 0.05 | J13: 6.3 | P13: 1 | Q13: 11 | R13: 15 | S13: 129 | T13: 129 | U13: 129 | V13: 129 | W13: 114 | X13: 95 | Y13: 76 | Z13: 56 | AA13: =AA12+$R12 -> 36 | AB13: =R12 -> 17
A14: December | B14: 31 | C14: 5 | D14: 22 | E14: 12 | F14: 0 | H14: 0.23 | I14: 0.25 | J14: 10.56 | P14: 1 | Q14: 12 | R14: 0 | S14: 144 | T14: 144 | U14: 144 | V14: 144 | W14: 129 | X14: 110 | Y14: 91 | Z14: 71 | AA14: 51 | AB14: =AB13+$R13 -> 32 | AC14: =R13 -> 15
P15: 2 | Q15: 1 | R15: =F3 -> 0 | S15: 144 | T15: 144 | U15: 144 | V15: 144 | W15: 129 | X15: 110 | Y15: 91 | Z15: 71 | AA15: 51 | AB15: 32 | AC15: =AC14+$R14 -> 15 | AD15: =R14 -> 0
A16: **Criteria: Moderate or greater rainfall/snow, temperatures less than 32 degrees (Source: weatherspark.com) | P16: 2 | Q16: 2 | R16: 0 | S16: 144 | T16: 144 | U16: 144 | V16: 144 | W16: 129 | X16: 110 | Y16: 91 | Z16: 71 | AA16: 51 | AB16: 32 | AC16: 15 | AD16: =AD15+$R15 -> 0
P17: 2 | Q17: 3 | R17: 0 | S17: 144 | T17: 144 | U17: 144 | V17: 144 | W17: 129 | X17: 110 | Y17: 91 | Z17: 71 | AA17: 51 | AB17: 32 | AC17: 15 | AD17: 0
P18: 2 | Q18: 4 | R18: 15 | S18: 144 | T18: 144 | U18: 144 | V18: 144 | W18: 129 | X18: 110 | Y18: 91 | Z18: 71 | AA18: 51 | AB18: 32 | AC18: 15 | AD18: 0
P19: 2 | Q19: 5 | R19: 19 | S19: 159 | T19: 159 | U19: 159 | V19: 159 | W19: 144 | X19: 125 | Y19: 106 | Z19: 86 | AA19: 66 | AB19: 47 | AC19: 30 | AD19: 15
P20: 2 | Q20: 6 | R20: 19 | S20: 178 | T20: 178 | U20: 178 | V20: 178 | W20: 163 | X20: 144 | Y20: 125 | Z20: 105 | AA20: 85 | AB20: 66 | AC20: 49 | AD20: 34
P21: 2 | Q21: 7 | R21: 20 | S21: 197 | T21: 197 | U21: 197 | V21: 197 | W21: 182 | X21: 163 | Y21: 144 | Z21: 124 | AA21: 104 | AB21: 85 | AC21: 68 | AD21: 53
P22: 2 | Q22: 8 | R22: 20 | S22: 217 | T22: 217 | U22: 217 | V22: 217 | W22: 202 | X22: 183 | Y22: 164 | Z22: 144 | AA22: 124 | AB22: 105 | AC22: 88 | AD22: 73
P23: 2 | Q23: 9 | R23: 19 | S23: 237 | T23: 237 | U23: 237 | V23: 237 | W23: 222 | X23: 203 | Y23: 184 | Z23: 164 | AA23: 144 | AB23: 125 | AC23: 108 | AD23: 93
P24: 2 | Q24: 10 | R24: 17 | S24: 256 | T24: 256 | U24: 256 | V24: 256 | W24: 241 | X24: 222 | Y24: 203 | Z24: 183 | AA24: 163 | AB24: 144 | AC24: 127 | AD24: 112
P25: 2 | Q25: 11 | R25: 15 | S25: 273 | T25: 273 | U25: 273 | V25: 273 | W25: 258 | X25: 239 | Y25: 220 | Z25: 200 | AA25: 180 | AB25: 161 | AC25: 144 | AD25: 129
P26: 2 | Q26: 12 | R26: 0 | S26: 288 | T26: 288 | U26: 288 | V26: 288 | W26: 273 | X26: 254 | Y26: 235 | Z26: 215 | AA26: 195 | AB26: 176 | AC26: 159 | AD26: 144
P27: 3 | Q27: 1 | R27: =F3 -> 0 | S27: 288 | T27: 288 | U27: 288 | V27: 288 | W27: 273 | X27: 254 | Y27: 235 | Z27: 215 | AA27: 195 | AB27: 176 | AC27: 159 | AD27: 144
P28: 3 | Q28: 2 | R28: 0 | S28: 288 | T28: 288 | U28: 288 | V28: 288 | W28: 273 | X28: 254 | Y28: 235 | Z28: 215 | AA28: 195 | AB28: 176 | AC28: 159 | AD28: 144
P29: 3 | Q29: 3 | R29: 0 | S29: 288 | T29: 288 | U29: 288 | V29: 288 | W29: 273 | X29: 254 | Y29: 235 | Z29: 215 | AA29: 195 | AB29: 176 | AC29: 159 | AD29: 144
P30: 3 | Q30: 4 | R30: 15 | S30: 288 | T30: 288 | U30: 288 | V30: 288 | W30: 273 | X30: 254 | Y30: 235 | Z30: 215 | AA30: 195 | AB30: 176 | AC30: 159 | AD30: 144
P31: 3 | Q31: 5 | R31: 19 | S31: 303 | T31: 303 | U31: 303 | V31: 303 | W31: 288 | X31: 269 | Y31: 250 | Z31: 230 | AA31: 210 | AB31: 191 | AC31: 174 | AD31: 159
P32: 3 | Q32: 6 | R32: 19 | S32: 322 | T32: 322 | U32: 322 | V32: 322 | W32: 307 | X32: 288 | Y32: 269 | Z32: 249 | AA32: 229 | AB32: 210 | AC32: 193 | AD32: 178
P33: 3 | Q33: 7 | R33: 20 | S33: 341 | T33: 341 | U33: 341 | V33: 341 | W33: 326 | X33: 307 | Y33: 288 | Z33: 268 | AA33: 248 | AB33: 229 | AC33: 212 | AD33: 197
P34: 3 | Q34: 8 | R34: 20 | S34: 361 | T34: 361 | U34: 361 | V34: 361 | W34: 346 | X34: 327 | Y34: 308 | Z34: 288 | AA34: 268 | AB34: 249 | AC34: 232 | AD34: 217
P35: 3 | Q35: 9 | R35: 19 | S35: 381 | T35: 381 | U35: 381 | V35: 381 | W35: 366 | X35: 347 | Y35: 328 | Z35: 308 | AA35: 288 | AB35: 269 | AC35: 252 | AD35: 237
P36: 3 | Q36: 10 | R36: 17 | S36: 400 | T36: 400 | U36: 400 | V36: 400 | W36: 385 | X36: 366 | Y36: 347 | Z36: 327 | AA36: 307 | AB36: 288 | AC36: 271 | AD36: 256
P37: 3 | Q37: 11 | R37: 15 | S37: 417 | T37: 417 | U37: 417 | V37: 417 | W37: 402 | X37: 383 | Y37: 364 | Z37: 344 | AA37: 324 | AB37: 305 | AC37: 288 | AD37: 273
P38: 3 | Q38: 12 | R38: 0 | S38: 432 | T38: =T37+$R37 -> 432 | U38: 432 | V38: 432 | W38: 417 | X38: 398 | Y38: 379 | Z38: 359 | AA38: 339 | AB38: 320 | AC38: 303 | AD38: 288
P39: 4 | Q39: 1 | R39: =F3 -> 0 | S39: =S38+R38 -> 432 | T39: 432 | U39: =U38+$R38 -> 432 | V39: 432 | W39: 417 | X39: 398 | Y39: 379 | Z39: 359 | AA39: 339 | AB39: 320 | AC39: 303 | AD39: 288
P40: 4 | Q40: 2 | R40: 0 | S40: 432 | T40: 432 | U40: 432 | V40: =V39+$R39 -> 432 | W40: 417 | X40: 398 | Y40: 379 | Z40: 359 | AA40: 339 | AB40: 320 | AC40: 303 | AD40: 288
P41: 4 | Q41: 3 | R41: 0 | S41: 432 | T41: 432 | U41: 432 | V41: 432 | W41: =W40+$R40 -> 417 | X41: 398 | Y41: 379 | Z41: 359 | AA41: 339 | AB41: 320 | AC41: 303 | AD41: 288
P42: 4 | Q42: 4 | R42: 15 | S42: 432 | T42: 432 | U42: 432 | V42: 432 | W42: 417 | X42: =X41+$R41 -> 398 | Y42: 379 | Z42: 359 | AA42: 339 | AB42: 320 | AC42: 303 | AD42: 288
P43: 4 | Q43: 5 | R43: 19 | S43: 447 | T43: 447 | U43: 447 | V43: 447 | W43: 432 | X43: 413 | Y43: =Y42+$R42 -> 394 | Z43: 374 | AA43: 354 | AB43: 335 | AC43: 318 | AD43: 303
P44: 4 | Q44: 6 | R44: 19 | S44: 466 | T44: 466 | U44: 466 | V44: 466 | W44: 451 | X44: 432 | Y44: 413 | Z44: =Z43+$R43 -> 393 | AA44: 373 | AB44: 354 | AC44: 337 | AD44: 322
P45: 4 | Q45: 7 | R45: 20 | S45: 485 | T45: 485 | U45: 485 | V45: 485 | W45: 470 | X45: 451 | Y45: 432 | Z45: 412 | AA45: =AA44+$R44 -> 392 | AB45: 373 | AC45: 356 | AD45: 341
P46: 4 | Q46: 8 | R46: 20 | S46: 505 | T46: 505 | U46: 505 | V46: 505 | W46: 490 | X46: 471 | Y46: 452 | Z46: 432 | AA46: 412 | AB46: =AB45+$R45 -> 393 | AC46: 376 | AD46: 361
P47: 4 | Q47: 9 | R47: 19 | S47: 525 | T47: 525 | U47: 525 | V47: 525 | W47: 510 | X47: 491 | Y47: 472 | Z47: 452 | AA47: 432 | AB47: 413 | AC47: =AC46+$R46 -> 396 | AD47: 381
P48: 4 | Q48: 10 | R48: 17 | S48: 544 | T48: 544 | U48: 544 | V48: 544 | W48: 529 | X48: 510 | Y48: 491 | Z48: 471 | AA48: 451 | AB48: 432 | AC48: 415 | AD48: =AD47+$R47 -> 400
P49: 4 | Q49: 11 | R49: 15 | S49: 561 | T49: 561 | U49: 561 | V49: 561 | W49: 546 | X49: 527 | Y49: 508 | Z49: 488 | AA49: 468 | AB49: 449 | AC49: 432 | AD49: 417
P50: 4 | Q50: 12 | R50: 0 | S50: 576 | T50: 576 | U50: 576 | V50: 576 | W50: 561 | X50: 542 | Y50: 523 | Z50: 503 | AA50: 483 | AB50: 464 | AC50: 447 | AD50: 432
P51: 5 | Q51: 1 | R51: =F3 -> 0 | S51: 576 | T51: 576 | U51: 576 | V51: 576 | W51: 561 | X51: 542 | Y51: 523 | Z51: 503 | AA51: 483 | AB51: 464 | AC51: 447 | AD51: 432
P52: 5 | Q52: 2 | R52: 0 | S52: 576 | T52: 576 | U52: 576 | V52: 576 | W52: 561 | X52: 542 | Y52: 523 | Z52: 503 | AA52: 483 | AB52: 464 | AC52: 447 | AD52: 432
P53: 5 | Q53: 3 | R53: 0 | S53: 576 | T53: 576 | U53: 576 | V53: 576 | W53: 561 | X53: 542 | Y53: 523 | Z53: 503 | AA53: 483 | AB53: 464 | AC53: 447 | AD53: 432
P54: 5 | Q54: 4 | R54: 15 | S54: 576 | T54: 576 | U54: 576 | V54: 576 | W54: 561 | X54: 542 | Y54: 523 | Z54: 503 | AA54: 483 | AB54: 464 | AC54: 447 | AD54: 432
P55: 5 | Q55: 5 | R55: 19 | S55: 591 | T55: 591 | U55: 591 | V55: 591 | W55: 576 | X55: 557 | Y55: 538 | Z55: 518 | AA55: 498 | AB55: 479 | AC55: 462 | AD55: 447
P56: 5 | Q56: 6 | R56: 19 | S56: 610 | T56: 610 | U56: 610 | V56: 610 | W56: 595 | X56: 576 | Y56: 557 | Z56: 537 | AA56: 517 | AB56: 498 | AC56: 481 | AD56: 466
P57: 5 | Q57: 7 | R57: 20 | S57: 629 | T57: 629 | U57: 629 | V57: 629 | W57: 614 | X57: 595 | Y57: 576 | Z57: 556 | AA57: 536 | AB57: 517 | AC57: 500 | AD57: 485
P58: 5 | Q58: 8 | R58: 20 | S58: 649 | T58: 649 | U58: 649 | V58: 649 | W58: 634 | X58: 615 | Y58: 596 | Z58: 576 | AA58: 556 | AB58: 537 | AC58: 520 | AD58: 505
P59: 5 | Q59: 9 | R59: 19 | S59: 669 | T59: 669 | U59: 669 | V59: 669 | W59: 654 | X59: 635 | Y59: 616 | Z59: 596 | AA59: 576 | AB59: 557 | AC59: 540 | AD59: 525
P60: 5 | Q60: 10 | R60: 17 | S60: 688 | T60: 688 | U60: 688 | V60: 688 | W60: 673 | X60: 654 | Y60: 635 | Z60: 615 | AA60: 595 | AB60: 576 | AC60: 559 | AD60: 544
P61: 5 | Q61: 11 | R61: 15 | S61: 705 | T61: 705 | U61: 705 | V61: 705 | W61: 690 | X61: 671 | Y61: 652 | Z61: 632 | AA61: 612 | AB61: 593 | AC61: 576 | AD61: 561
P62: 5 | Q62: 12 | R62: 0 | S62: 720 | T62: 720 | U62: 720 | V62: 720 | W62: 705 | X62: 686 | Y62: 667 | Z62: 647 | AA62: 627 | AB62: 608 | AC62: 591 | AD62: 576
P63: 6 | Q63: 1 | R63: =F3 -> 0 | S63: 720 | T63: 720 | U63: 720 | V63: 720 | W63: 705 | X63: 686 | Y63: 667 | Z63: 647 | AA63: 627 | AB63: 608 | AC63: 591 | AD63: 576
P64: 6 | Q64: 2 | R64: 0 | S64: 720 | T64: 720 | U64: 720 | V64: 720 | W64: 705 | X64: 686 | Y64: 667 | Z64: 647 | AA64: 627 | AB64: 608 | AC64: 591 | AD64: 576
P65: 6 | Q65: 3 | R65: 0 | S65: 720 | T65: 720 | U65: 720 | V65: 720 | W65: 705 | X65: 686 | Y65: 667 | Z65: 647 | AA65: 627 | AB65: 608 | AC65: 591 | AD65: 576
P66: 6 | Q66: 4 | R66: 15 | S66: 720 | T66: 720 | U66: 720 | V66: 720 | W66: 705 | X66: 686 | Y66: 667 | Z66: 647 | AA66: 627 | AB66: 608 | AC66: 591 | AD66: 576
P67: 6 | Q67: 5 | R67: 19 | S67: 735 | T67: 735 | U67: 735 | V67: 735 | W67: 720 | X67: 701 | Y67: 682 | Z67: 662 | AA67: 642 | AB67: 623 | AC67: 606 | AD67: 591
P68: 6 | Q68: 6 | R68: 19 | S68: 754 | T68: 754 | U68: 754 | V68: 754 | W68: 739 | X68: 720 | Y68: 701 | Z68: 681 | AA68: 661 | AB68: 642 | AC68: 625 | AD68: 610
P69: 6 | Q69: 7 | R69: 20 | S69: 773 | T69: 773 | U69: 773 | V69: 773 | W69: 758 | X69: 739 | Y69: 720 | Z69: 700 | AA69: 680 | AB69: 661 | AC69: 644 | AD69: 629
P70: 6 | Q70: 8 | R70: 20 | S70: 793 | T70: =T69+$R69 -> 793 | U70: 793 | V70: 793 | W70: 778 | X70: 759 | Y70: 740 | Z70: 720 | AA70: 700 | AB70: 681 | AC70: 664 | AD70: 649
P71: 6 | Q71: 9 | R71: 19 | S71: =S70+R70 -> 813 | T71: 813 | U71: =U70+$R70 -> 813 | V71: 813 | W71: 798 | X71: 779 | Y71: 760 | Z71: 740 | AA71: 720 | AB71: 701 | AC71: 684 | AD71: 669
P72: 6 | Q72: 10 | R72: 17 | S72: 832 | T72: 832 | U72: 832 | V72: =V71+$R71 -> 832 | W72: 817 | X72: 798 | Y72: 779 | Z72: 759 | AA72: 739 | AB72: 720 | AC72: 703 | AD72: 688
P73: 6 | Q73: 11 | R73: 15 | S73: 849 | T73: 849 | U73: 849 | V73: 849 | W73: =W72+$R72 -> 834 | X73: 815 | Y73: 796 | Z73: 776 | AA73: 756 | AB73: 737 | AC73: 720 | AD73: 705
P74: 6 | Q74: 12 | R74: 0 | S74: 864 | T74: 864 | U74: 864 | V74: 864 | W74: 849 | X74: =X73+$R73 -> 830 | Y74: 811 | Z74: 791 | AA74: 771 | AB74: 752 | AC74: 735 | AD74: 720
P75: 7 | Q75: 1 | R75: =F3 -> 0 | S75: 864 | T75: 864 | U75: 864 | V75: 864 | W75: 849 | X75: 830 | Y75: =Y74+$R74 -> 811 | Z75: 791 | AA75: 771 | AB75: 752 | AC75: 735 | AD75: 720
P76: 7 | Q76: 2 | R76: 0 | S76: 864 | T76: 864 | U76: 864 | V76: 864 | W76: 849 | X76: 830 | Y76: 811 | Z76: =Z75+$R75 -> 791 | AA76: 771 | AB76: 752 | AC76: 735 | AD76: 720
P77: 7 | Q77: 3 | R77: 0 | S77: 864 | T77: 864 | U77: 864 | V77: 864 | W77: 849 | X77: 830 | Y77: 811 | Z77: 791 | AA77: =AA76+$R76 -> 771 | AB77: 752 | AC77: 735 | AD77: 720
P78: 7 | Q78: 4 | R78: 15 | S78: 864 | T78: 864 | U78: 864 | V78: 864 | W78: 849 | X78: 830 | Y78: 811 | Z78: 791 | AA78: 771 | AB78: =AB77+$R77 -> 752 | AC78: 735 | AD78: 720
P79: 7 | Q79: 5 | R79: 19 | S79: 879 | T79: 879 | U79: 879 | V79: 879 | W79: 864 | X79: 845 | Y79: 826 | Z79: 806 | AA79: 786 | AB79: 767 | AC79: =AC78+$R78 -> 750 | AD79: 735
P80: 7 | Q80: 6 | R80: 19 | S80: 898 | T80: 898 | U80: 898 | V80: 898 | W80: 883 | X80: 864 | Y80: 845 | Z80: 825 | AA80: 805 | AB80: 786 | AC80: 769 | AD80: =AD79+$R79 -> 754
P81: 7 | Q81: 7 | R81: 20 | S81: 917 | T81: 917 | U81: 917 | V81: 917 | W81: 902 | X81: 883 | Y81: 864 | Z81: 844 | AA81: 824 | AB81: 805 | AC81: 788 | AD81: 773
P82: 7 | Q82: 8 | R82: 20 | S82: 937 | T82: 937 | U82: 937 | V82: 937 | W82: 922 | X82: 903 | Y82: 884 | Z82: 864 | AA82: 844 | AB82: 825 | AC82: 808 | AD82: 793
P83: 7 | Q83: 9 | R83: 19 | S83: 957 | T83: 957 | U83: 957 | V83: 957 | W83: 942 | X83: 923 | Y83: 904 | Z83: 884 | AA83: 864 | AB83: 845 | AC83: 828 | AD83: 813
P84: 7 | Q84: 10 | R84: 17 | S84: 976 | T84: 976 | U84: 976 | V84: 976 | W84: 961 | X84: 942 | Y84: 923 | Z84: 903 | AA84: 883 | AB84: 864 | AC84: 847 | AD84: 832
P85: 7 | Q85: 11 | R85: 15 | S85: 993 | T85: 993 | U85: 993 | V85: 993 | W85: 978 | X85: 959 | Y85: 940 | Z85: 920 | AA85: 900 | AB85: 881 | AC85: 864 | AD85: 849
P86: 7 | Q86: 12 | R86: 0 | S86: 1008 | T86: 1008 | U86: 1008 | V86: 1008 | W86: 993 | X86: 974 | Y86: 955 | Z86: 935 | AA86: 915 | AB86: 896 | AC86: 879 | AD86: 864
P87: 8 | Q87: 1 | R87: =F3 -> 0 | S87: 1008 | T87: 1008 | U87: 1008 | V87: 1008 | W87: 993 | X87: 974 | Y87: 955 | Z87: 935 | AA87: 915 | AB87: 896 | AC87: 879 | AD87: 864
P88: 8 | Q88: 2 | R88: 0 | S88: 1008 | T88: 1008 | U88: 1008 | V88: 1008 | W88: 993 | X88: 974 | Y88: 955 | Z88: 935 | AA88: 915 | AB88: 896 | AC88: 879 | AD88: 864
P89: 8 | Q89: 3 | R89: 0 | S89: 1008 | T89: 1008 | U89: 1008 | V89: 1008 | W89: 993 | X89: 974 | Y89: 955 | Z89: 935 | AA89: 915 | AB89: 896 | AC89: 879 | AD89: 864
P90: 8 | Q90: 4 | R90: 15 | S90: 1008 | T90: 1008 | U90: 1008 | V90: 1008 | W90: 993 | X90: 974 | Y90: 955 | Z90: 935 | AA90: 915 | AB90: 896 | AC90: 879 | AD90: 864
P91: 8 | Q91: 5 | R91: 19 | S91: 1023 | T91: 1023 | U91: 1023 | V91: 1023 | W91: 1008 | X91: 989 | Y91: 970 | Z91: 950 | AA91: 930 | AB91: 911 | AC91: 894 | AD91: 879
P92: 8 | Q92: 6 | R92: 19 | S92: 1042 | T92: 1042 | U92: 1042 | V92: 1042 | W92: 1027 | X92: 1008 | Y92: 989 | Z92: 969 | AA92: 949 | AB92: 930 | AC92: 913 | AD92: 898
P93: 8 | Q93: 7 | R93: 20 | S93: 1061 | T93: 1061 | U93: 1061 | V93: 1061 | W93: 1046 | X93: 1027 | Y93: 1008 | Z93: 988 | AA93: 968 | AB93: 949 | AC93: 932 | AD93: 917
P94: 8 | Q94: 8 | R94: 20 | S94: 1081 | T94: 1081 | U94: 1081 | V94: 1081 | W94: 1066 | X94: 1047 | Y94: 1028 | Z94: 1008 | AA94: 988 | AB94: 969 | AC94: 952 | AD94: 937
P95: 8 | Q95: 9 | R95: 19 | S95: 1101 | T95: 1101 | U95: 1101 | V95: 1101 | W95: 1086 | X95: 1067 | Y95: 1048 | Z95: 1028 | AA95: 1008 | AB95: 989 | AC95: 972 | AD95: 957
P96: 8 | Q96: 10 | R96: 17 | S96: 1120 | T96: 1120 | U96: 1120 | V96: 1120 | W96: 1105 | X96: 1086 | Y96: 1067 | Z96: 1047 | AA96: 1027 | AB96: 1008 | AC96: 991 | AD96: 976
P97: 8 | Q97: 11 | R97: 15 | S97: 1137 | T97: 1137 | U97: 1137 | V97: 1137 | W97: 1122 | X97: 1103 | Y97: 1084 | Z97: 1064 | AA97: 1044 | AB97: 1025 | AC97: 1008 | AD97: 993
P98: 8 | Q98: 12 | R98: 0 | S98: 1152 | T98: 1152 | U98: 1152 | V98: 1152 | W98: 1137 | X98: 1118 | Y98: 1099 | Z98: 1079 | AA98: 1059 | AB98: 1040 | AC98: 1023 | AD98: 1008
P99: 9 | Q99: 1 | R99: =F3 -> 0 | S99: 1152 | T99: 1152 | U99: 1152 | V99: 1152 | W99: 1137 | X99: 1118 | Y99: 1099 | Z99: 1079 | AA99: 1059 | AB99: 1040 | AC99: 1023 | AD99: 1008
P100: 9 | Q100: 2 | R100: 0 | S100: 1152 | T100: 1152 | U100: 1152 | V100: 1152 | W100: 1137 | X100: 1118 | Y100: 1099 | Z100: 1079 | AA100: 1059 | AB100: 1040 | AC100: 1023 | AD100: 1008
P101: 9 | Q101: 3 | R101: 0 | S101: 1152 | T101: 1152 | U101: 1152 | V101: 1152 | W101: 1137 | X101: 1118 | Y101: 1099 | Z101: 1079 | AA101: 1059 | AB101: 1040 | AC101: 1023 | AD101: 1008
P102: 9 | Q102: 4 | R102: 15 | S102: 1152 | T102: =T101+$R101 -> 1152 | U102: 1152 | V102: 1152 | W102: 1137 | X102: 1118 | Y102: 1099 | Z102: 1079 | AA102: 1059 | AB102: 1040 | AC102: 1023 | AD102: 1008
P103: 9 | Q103: 5 | R103: 19 | S103: =S102+R102 -> 1167 | T103: 1167 | U103: =U102+$R102 -> 1167 | V103: 1167 | W103: 1152 | X103: 1133 | Y103: 1114 | Z103: 1094 | AA103: 1074 | AB103: 1055 | AC103: 1038 | AD103: 1023
P104: 9 | Q104: 6 | R104: 19 | S104: 1186 | T104: 1186 | U104: 1186 | V104: =V103+$R103 -> 1186 | W104: 1171 | X104: 1152 | Y104: 1133 | Z104: 1113 | AA104: 1093 | AB104: 1074 | AC104: 1057 | AD104: 1042
P105: 9 | Q105: 7 | R105: 20 | S105: 1205 | T105: 1205 | U105: 1205 | V105: 1205 | W105: =W104+$R104 -> 1190 | X105: 1171 | Y105: 1152 | Z105: 1132 | AA105: 1112 | AB105: 1093 | AC105: 1076 | AD105: 1061
P106: 9 | Q106: 8 | R106: 20 | S106: 1225 | T106: 1225 | U106: 1225 | V106: 1225 | W106: 1210 | X106: =X105+$R105 -> 1191 | Y106: 1172 | Z106: 1152 | AA106: 1132 | AB106: 1113 | AC106: 1096 | AD106: 1081
P107: 9 | Q107: 9 | R107: 19 | S107: 1245 | T107: 1245 | U107: 1245 | V107: 1245 | W107: 1230 | X107: 1211 | Y107: =Y106+$R106 -> 1192 | Z107: 1172 | AA107: 1152 | AB107: 1133 | AC107: 1116 | AD107: 1101
P108: 9 | Q108: 10 | R108: 17 | S108: 1264 | T108: 1264 | U108: 1264 | V108: 1264 | W108: 1249 | X108: 1230 | Y108: 1211 | Z108: =Z107+$R107 -> 1191 | AA108: 1171 | AB108: 1152 | AC108: 1135 | AD108: 1120
P109: 9 | Q109: 11 | R109: 15 | S109: 1281 | T109: 1281 | U109: 1281 | V109: 1281 | W109: 1266 | X109: 1247 | Y109: 1228 | Z109: 1208 | AA109: =AA108+$R108 -> 1188 | AB109: 1169 | AC109: 1152 | AD109: 1137
P110: 9 | Q110: 12 | R110: 0 | S110: 1296 | T110: 1296 | U110: 1296 | V110: 1296 | W110: 1281 | X110: 1262 | Y110: 1243 | Z110: 1223 | AA110: 1203 | AB110: =AB109+$R109 -> 1184 | AC110: 1167 | AD110: 1152
P111: 10 | Q111: 1 | R111: =F3 -> 0 | S111: 1296 | T111: 1296 | U111: 1296 | V111: 1296 | W111: 1281 | X111: 1262 | Y111: 1243 | Z111: 1223 | AA111: 1203 | AB111: 1184 | AC111: =AC110+$R110 -> 1167 | AD111: 1152
P112: 10 | Q112: 2 | R112: 0 | S112: 1296 | T112: 1296 | U112: 1296 | V112: 1296 | W112: 1281 | X112: 1262 | Y112: 1243 | Z112: 1223 | AA112: 1203 | AB112: 1184 | AC112: 1167 | AD112: =AD111+$R111 -> 1152
P113: 10 | Q113: 3 | R113: 0 | S113: 1296 | T113: 1296 | U113: 1296 | V113: 1296 | W113: 1281 | X113: 1262 | Y113: 1243 | Z113: 1223 | AA113: 1203 | AB113: 1184 | AC113: 1167 | AD113: 1152
P114: 10 | Q114: 4 | R114: 15 | S114: 1296 | T114: 1296 | U114: 1296 | V114: 1296 | W114: 1281 | X114: 1262 | Y114: 1243 | Z114: 1223 | AA114: 1203 | AB114: 1184 | AC114: 1167 | AD114: 1152
P115: 10 | Q115: 5 | R115: 19 | S115: 1311 | T115: 1311 | U115: 1311 | V115: 1311 | W115: 1296 | X115: 1277 | Y115: 1258 | Z115: 1238 | AA115: 1218 | AB115: 1199 | AC115: 1182 | AD115: 1167
P116: 10 | Q116: 6 | R116: 19 | S116: 1330 | T116: 1330 | U116: 1330 | V116: 1330 | W116: 1315 | X116: 1296 | Y116: 1277 | Z116: 1257 | AA116: 1237 | AB116: 1218 | AC116: 1201 | AD116: 1186
P117: 10 | Q117: 7 | R117: 20 | S117: 1349 | T117: 1349 | U117: 1349 | V117: 1349 | W117: 1334 | X117: 1315 | Y117: 1296 | Z117: 1276 | AA117: 1256 | AB117: 1237 | AC117: 1220 | AD117: 1205
P118: 10 | Q118: 8 | R118: 20 | S118: 1369 | T118: 1369 | U118: 1369 | V118: 1369 | W118: 1354 | X118: 1335 | Y118: 1316 | Z118: 1296 | AA118: 1276 | AB118: 1257 | AC118: 1240 | AD118: 1225
P119: 10 | Q119: 9 | R119: 19 | S119: 1389 | T119: 1389 | U119: 1389 | V119: 1389 | W119: 1374 | X119: 1355 | Y119: 1336 | Z119: 1316 | AA119: 1296 | AB119: 1277 | AC119: 1260 | AD119: 1245
P120: 10 | Q120: 10 | R120: 17 | S120: 1408 | T120: 1408 | U120: 1408 | V120: 1408 | W120: 1393 | X120: 1374 | Y120: 1355 | Z120: 1335 | AA120: 1315 | AB120: 1296 | AC120: 1279 | AD120: 1264
P121: 10 | Q121: 11 | R121: 15 | S121: 1425 | T121: 1425 | U121: 1425 | V121: 1425 | W121: 1410 | X121: 1391 | Y121: 1372 | Z121: 1352 | AA121: 1332 | AB121: 1313 | AC121: 1296 | AD121: 1281
P122: 10 | Q122: 12 | R122: 0 | S122: 1440 | T122: 1440 | U122: 1440 | V122: 1440 | W122: 1425 | X122: 1406 | Y122: 1387 | Z122: 1367 | AA122: 1347 | AB122: 1328 | AC122: 1311 | AD122: 1296

Sheet CostIndex
D112: Average | E112: Adj. to 2005 $
D113: =AVERAGE(C113:C116) ->  | E113: =D113/$D$121 -> 
D117: =AVERAGE(C117:C120) ->  | E117: =D117/$D$121 -> 
D121: =AVERAGE(C121:C124) ->  | E121: =D121/$D$121 -> 
D125: =AVERAGE(C125:C128) ->  | E125: =D125/$D$121 -> 
D129: =AVERAGE(C129:C132) ->  | E129: =D129/$D$121 -> 
D133: =AVERAGE(C133:C136) ->  | E133: =D133/$D$121 -> 
D137: =AVERAGE(C137:C140) ->  | E137: =D137/$D$121 -> 
D141: =AVERAGE(C141:C144) ->  | E141: =D141/$D$121 -> 
D145: =AVERAGE(C145:C148) ->  | E145: =D145/$D$121 -> 
D149: =AVERAGE(C149:C152) ->  | E149: =D149/$D$121 -> 
D153: =AVERAGE(C153:C156) ->  | E153: =D153/$D$121 -> 
D157: =AVERAGE(C157:C160) ->  | E157: =D157/$D$121 -> 
D161: =AVERAGE(C161:C164) ->  | E161: =D161/$D$121 -> 
D165: =AVERAGE(C165:C168) ->  | E165: =D165/$D$121 -> 
D169: =AVERAGE(C169:C172) ->  | E169: =D169/$D$121 -> 
D173: =AVERAGE(C173:C176) ->  | E173: =D173/$D$121 -> 
D177: =AVERAGE(C177:C180) ->  | E177: =D177/$D$121 -> 
D181: =AVERAGE(C181:C184) ->  | E181: =D181/$D$121 -> 
D185: =AVERAGE(C185:C188) ->  | E185: =D185/$D$121 -> 
D189: =AVERAGE(C189:C192) ->  | E189: =D189/$D$121 -> 
D193: =AVERAGE(C193:C196) ->  | E193: =D193/$D$121 -> 
D197: =AVERAGE(C197:C200) ->  | E197: =D197/$D$121 -> 
D201: =AVERAGE(C201:C204) ->  | E201: =D201/$D$121 -> 
D205: =AVERAGE(C205:C208) ->  | E205: =D205/$D$121 -> 
D209: =AVERAGE(C209:C212) ->  | E209: =D209/$D$121 -> 
D213: =AVERAGE(C213:C216) ->  | E213: =D213/$D$121 -> 
D217: =AVERAGE(C217:C220) ->  | E217: =D217/$D$121 -> 
D221: =AVERAGE(C221:C224) ->  | E221: =D221/$D$121 -> 
D225: =AVERAGE(C225:C228) ->  | E225: =D225/$D$121 -> 
D229: =AVERAGE(C229:C232) ->  | E229: =D229/$D$121 -> 
D233: =AVERAGE(C233:C236) ->  | E233: =D233/$D$121 -> 
D237: =AVERAGE(C237:C240) ->  | E237: =D237/$D$121 -> 
D241: =AVERAGE(C241:C244) ->  | E241: =D241/$D$121 -> 
D245: =AVERAGE(C245:C248) ->  | E245: =D245/$D$121 -> 
D249: =AVERAGE(C249:C252) ->  | E249: =D249/$D$121 -> 
D253: =AVERAGE(C253:C256) ->  | E253: =D253/$D$121 -> 
D257: =AVERAGE(C257:C260) ->  | E257: =D257/$D$121 -> 
D261: =AVERAGE(C261:C264) ->  | E261: =D261/$D$121 -> 
D265: =AVERAGE(C265:C268) ->  | E265: =D265/$D$121 -> 
D269: =AVERAGE(C269:C272) ->  | E269: =D269/$D$121 -> 
D273: =AVERAGE(C273:C276) ->  | E273: =D273/$D$121 -> 
D277: =AVERAGE(C277:C280) ->  | E277: =D277/$D$121 -> 
D281: =AVERAGE(C281:C284) ->  | E281: =D281/$D$121 -> 
D285: =AVERAGE(C285:C288) ->  | E285: =D285/$D$121 -> 
D289: =AVERAGE(C289:C292) ->  | E289: =D289/$D$121 -> 
D293: =AVERAGE(C293:C296) ->  | E293: =D293/$D$121 -> 
D297: =AVERAGE(C297:C300) ->  | E297: =D297/$D$121 -> 
D301: =AVERAGE(C301:C304) ->  | E301: =D301/$D$121 -> 
D305: =AVERAGE(C305:C308) ->  | E305: =D305/$D$121 -> 
D309: =AVERAGE(C309:C312) ->  | E309: =D309/$D$121 -> 
D313: =AVERAGE(C313:C316) ->  | E313: =D313/$D$121 -> 
D317: =AVERAGE(C317:C320) ->  | E317: =D317/$D$121 -> 
D321: =AVERAGE(C321:C324) ->  | E321: =D321/$D$121 -> 
D325: =AVERAGE(C325:C328) ->  | E325: =D325/$D$121 -> 
D329: =AVERAGE(C329:C332) ->  | E329: =D329/$D$121 -> 
D333: =AVERAGE(C333:C336) ->  | E333: =D333/$D$121 -> 
